Workbook

Sheet SolverDemo
C1: Solve independently or together | G1: For sequential solving (eg with Yasai)
C3: State | G3: State (as a parameter)
C4: Dry | D4: Wet
C5: 1 | D5: 2 | G5: =[1]!Parameter(C5:D5,1,C3) -> 2
B6: Probability | C6: 0.7 | D6: =1-C6 -> 0.3
B8: Prod Function coefficients | G8: Cells that change with State (Parameter)
B9: a | C9: -0.4 | D9: -0.4 | G9: =INDEX($C$1:$D$33,ROW(G9),$G$5) -> -0.4
B10: b | C10: 17.4 | D10: 34.9 | G10: =INDEX($C$1:$D$33,ROW(G10),$G$5) -> 34.9
B11: c | C11: 470 | D11: 895 | G11: 895
A14: Land area | B14: ha | C14: 10
A15: N unit cost | B15: $CFA/kg | C15: 0.5
A16: Millet unit value | B16: $CFA/kg | C16: 0.1
B18: (optima) | C18: 15.49999609 | D18: 37.37500002 | G18: Cell optimised in each iteration
A19: N (input) | B19: kg N /ha | C19: 15.49999609 | D19: 37.37500002 | G19: 37.375
A20: Production (output) | B20: kg Millet/ha | C20: =+$C$9*C19^2+$C$10*C19+$C$11 -> 643.5999805 | D20: =+$D$9*D19^2+$D$10*D19+$D$11 -> 1640.63125 | G20: =+$G$9*G19^2+$G$10*G19+$G$11 -> 1640.63125
A21: Revenue | B21: $CFA | C21: =+C20*$C$14*$C$16 -> 643.5999805 | D21: =+D20*$C$14*$C$16 -> 1640.63125 | G21: =+G20*$C$14*$C$16 -> 1640.63125
A22: N cost | B22: $CFA | C22: =+C19*$C$15*$C$14 -> 77.49998047 | D22: =+D19*$C$15*$C$14 -> 186.8750001 | G22: =+G19*$C$15*$C$14 -> 186.875
A23: Profit | B23: $CFA | C23: =+C21-C22 -> 566.1 | D23: =+D21-D22 -> 1453.75625 | G23: =+G21-G22 -> 1453.75625
B25: Weighted profit | C25: =+C23*C6+D23*D6 -> 832.396875 | F25: SimOutputs
F26: State | G26: =[1]!simOutput(G5,F26) -> 2
F27: Coeff a | G27: =[1]!simOutput(G9,F27) -> -0.4
F28: Coeff b | G28: =[1]!simOutput(G10,F28) -> 34.9
F29: Coeff c | G29: =[1]!simOutput(G11,F29) -> 895
F30: N | G30: =[1]!simOutput(G19,F30) -> 37.375
F31: Profit | G31: =[1]!simOutput(G23,F31) -> 1453.75625

Sheet Simulation Output 11
A1: YASAIw Simulation Output
A3: Workbook | B3: Hardaker example for web.xlsm | C3: YASAI Version: | D3: v2.0w29
C4: Use Same Seed? | D4: Yes
A5: Start Date | B5: 2015-02-05 | C5: Random Number Seed: | D5: 63328.60156
A6: Start Time | B6: 17:35:28
A7: Run Time (h:mm:ss) | B7: 00:01:10
A8: Scenarios: | B8: 2
A9: Sample Size: | B9: 2
B11: Parameter
A12: Scenario | B12: State
A13: 1 | B13: 1
A14: 2 | B14: 2
A16: Output Name | B16: Scenario | C16: Observations | D16: Mean | E16: Standard Deviation | F16: 0 | G16: 0.01 | H16: 0.05 | I16: 0.1 | J16: 0.25 | K16: 0.5 | L16: 0.75 | M16: 0.9 | N16: 0.95 | O16: 0.99 | P16: 1
A17: Coeff a | B17: 1 | C17: 2 | D17: -0.4 | E17: 0 | F17: -0.4 | G17: -0.4 | H17: -0.4 | I17: -0.4 | J17: -0.4 | K17: -0.4 | L17: -0.4 | M17: -0.4 | N17: -0.4 | O17: -0.4 | P17: -0.4
A18: Coeff a | B18: 2 | C18: 2 | D18: -0.4 | E18: 0 | F18: -0.4 | G18: -0.4 | H18: -0.4 | I18: -0.4 | J18: -0.4 | K18: -0.4 | L18: -0.4 | M18: -0.4 | N18: -0.4 | O18: -0.4 | P18: -0.4
A19: Coeff b | B19: 1 | C19: 2 | D19: 17.4 | E19: 0 | F19: 17.4 | G19: 17.4 | H19: 17.4 | I19: 17.4 | J19: 17.4 | K19: 17.4 | L19: 17.4 | M19: 17.4 | N19: 17.4 | O19: 17.4 | P19: 17.4
A20: Coeff b | B20: 2 | C20: 2 | D20: 34.9 | E20: 0 | F20: 34.9 | G20: 34.9 | H20: 34.9 | I20: 34.9 | J20: 34.9 | K20: 34.9 | L20: 34.9 | M20: 34.9 | N20: 34.9 | O20: 34.9 | P20: 34.9
A21: Coeff c | B21: 1 | C21: 2 | D21: 470 | E21: 0 | F21: 470 | G21: 470 | H21: 470 | I21: 470 | J21: 470 | K21: 470 | L21: 470 | M21: 470 | N21: 470 | O21: 470 | P21: 470
A22: Coeff c | B22: 2 | C22: 2 | D22: 895 | E22: 0 | F22: 895 | G22: 895 | H22: 895 | I22: 895 | J22: 895 | K22: 895 | L22: 895 | M22: 895 | N22: 895 | O22: 895 | P22: 895
A23: N | B23: 1 | C23: 2 | D23: 26.4375 | E23: 15.46796084 | F23: 15.5 | G23: 15.71875 | H23: 16.59375 | I23: 17.6875 | J23: 20.96875 | K23: 26.4375 | L23: 31.90625 | M23: 35.1875 | N23: 36.28125 | O23: 37.15625 | P23: 37.375
A24: N | B24: 2 | C24: 2 | D24: 37.375 | E24: 0 | F24: 37.375 | G24: 37.375 | H24: 37.375 | I24: 37.375 | J24: 37.375 | K24: 37.375 | L24: 37.375 | M24: 37.375 | N24: 37.375 | O24: 37.375 | P24: 37.375
A25: Profit | B25: 1 | C25: 2 | D25: 470.396875 | E25: 135.3446573 | F25: 374.69375 | G25: 376.6078125 | H25: 384.2640625 | I25: 393.834375 | J25: 422.5453125 | K25: 470.396875 | L25: 518.2484375 | M25: 546.959375 | N25: 556.5296875 | O25: 564.1859375 | P25: 566.1
A26: Profit | B26: 2 | C26: 2 | D26: 1453.75625 | E26: 0 | F26: 1453.75625 | G26: 1453.75625 | H26: 1453.75625 | I26: 1453.75625 | J26: 1453.75625 | K26: 1453.75625 | L26: 1453.75625 | M26: 1453.75625 | N26: 1453.75625 | O26: 1453.75625 | P26: 1453.75625
A27: State | B27: 1 | C27: 2 | D27: 1 | E27: 0 | F27: 1 | G27: 1 | H27: 1 | I27: 1 | J27: 1 | K27: 1 | L27: 1 | M27: 1 | N27: 1 | O27: 1 | P27: 1
A28: State | B28: 2 | C28: 2 | D28: 2 | E28: 0 | F28: 2 | G28: 2 | H28: 2 | I28: 2 | J28: 2 | K28: 2 | L28: 2 | M28: 2 | N28: 2 | O28: 2 | P28: 2

Sheet CFD Output 11
A1: Output Name | B1: Coeff a | C1: Coeff b | D1: Coeff c | E1: N | F1: Profit | G1: State | H1: Coeff a | I1: Coeff b | J1: Coeff c | K1: N | L1: Profit | M1: State
A2: Scenario | B2: 1 | C2: 1 | D2: 1 | E2: 1 | F2: 1 | G2: 1 | H2: 2 | I2: 2 | J2: 2 | K2: 2 | L2: 2 | M2: 2
A3: Observations | B3: 2 | C3: 2 | D3: 2 | E3: 2 | F3: 2 | G3: 2 | H3: 2 | I3: 2 | J3: 2 | K3: 2 | L3: 2 | M3: 2
A4: Mean | B4: -0.4 | C4: 17.4 | D4: 470 | E4: 26.4375 | F4: 470.396875 | G4: 1 | H4: -0.4 | I4: 34.9 | J4: 895 | K4: 37.375 | L4: 1453.75625 | M4: 2
A5: Standard deviation | B5: 0 | C5: 0 | D5: 0 | E5: 15.46796084 | F5: 135.3446573 | G5: 0 | H5: 0 | I5: 0 | J5: 0 | K5: 0 | L5: 0 | M5: 0
A6: 0 | B6: -0.4 | C6: 17.4 | D6: 470 | E6: 15.5 | F6: 374.69375 | G6: 1 | H6: -0.4 | I6: 34.9 | J6: 895 | K6: 37.375 | L6: 1453.75625 | M6: 2
A7: 0.01 | B7: -0.4 | C7: 17.4 | D7: 470 | E7: 15.71875 | F7: 376.6078125 | G7: 1 | H7: -0.4 | I7: 34.9 | J7: 895 | K7: 37.375 | L7: 1453.75625 | M7: 2
A8: 0.02 | B8: -0.4 | C8: 17.4 | D8: 470 | E8: 15.9375 | F8: 378.521875 | G8: 1 | H8: -0.4 | I8: 34.9 | J8: 895 | K8: 37.375 | L8: 1453.75625 | M8: 2
A9: 0.03 | B9: -0.4 | C9: 17.4 | D9: 470 | E9: 16.15625 | F9: 380.4359375 | G9: 1 | H9: -0.4 | I9: 34.9 | J9: 895 | K9: 37.375 | L9: 1453.75625 | M9: 2
A10: 0.04 | B10: -0.4 | C10: 17.4 | D10: 470 | E10: 16.375 | F10: 382.35 | G10: 1 | H10: -0.4 | I10: 34.9 | J10: 895 | K10: 37.375 | L10: 1453.75625 | M10: 2
A11: 0.05 | B11: -0.4 | C11: 17.4 | D11: 470 | E11: 16.59375 | F11: 384.2640625 | G11: 1 | H11: -0.4 | I11: 34.9 | J11: 895 | K11: 37.375 | L11: 1453.75625 | M11: 2
A12: 0.06 | B12: -0.4 | C12: 17.4 | D12: 470 | E12: 16.8125 | F12: 386.178125 | G12: 1 | H12: -0.4 | I12: 34.9 | J12: 895 | K12: 37.375 | L12: 1453.75625 | M12: 2
A13: 0.07 | B13: -0.4 | C13: 17.4 | D13: 470 | E13: 17.03125 | F13: 388.0921875 | G13: 1 | H13: -0.4 | I13: 34.9 | J13: 895 | K13: 37.375 | L13: 1453.75625 | M13: 2
A14: 0.08 | B14: -0.4 | C14: 17.4 | D14: 470 | E14: 17.25 | F14: 390.00625 | G14: 1 | H14: -0.4 | I14: 34.9 | J14: 895 | K14: 37.375 | L14: 1453.75625 | M14: 2
A15: 0.09 | B15: -0.4 | C15: 17.4 | D15: 470 | E15: 17.46875 | F15: 391.9203125 | G15: 1 | H15: -0.4 | I15: 34.9 | J15: 895 | K15: 37.375 | L15: 1453.75625 | M15: 2
A16: 0.1 | B16: -0.4 | C16: 17.4 | D16: 470 | E16: 17.6875 | F16: 393.834375 | G16: 1 | H16: -0.4 | I16: 34.9 | J16: 895 | K16: 37.375 | L16: 1453.75625 | M16: 2
A17: 0.11 | B17: -0.4 | C17: 17.4 | D17: 470 | E17: 17.90625 | F17: 395.7484375 | G17: 1 | H17: -0.4 | I17: 34.9 | J17: 895 | K17: 37.375 | L17: 1453.75625 | M17: 2
A18: 0.12 | B18: -0.4 | C18: 17.4 | D18: 470 | E18: 18.125 | F18: 397.6625 | G18: 1 | H18: -0.4 | I18: 34.9 | J18: 895 | K18: 37.375 | L18: 1453.75625 | M18: 2
A19: 0.13 | B19: -0.4 | C19: 17.4 | D19: 470 | E19: 18.34375 | F19: 399.5765625 | G19: 1 | H19: -0.4 | I19: 34.9 | J19: 895 | K19: 37.375 | L19: 1453.75625 | M19: 2
A20: 0.14 | B20: -0.4 | C20: 17.4 | D20: 470 | E20: 18.5625 | F20: 401.490625 | G20: 1 | H20: -0.4 | I20: 34.9 | J20: 895 | K20: 37.375 | L20: 1453.75625 | M20: 2
A21: 0.15 | B21: -0.4 | C21: 17.4 | D21: 470 | E21: 18.78125 | F21: 403.4046875 | G21: 1 | H21: -0.4 | I21: 34.9 | J21: 895 | K21: 37.375 | L21: 1453.75625 | M21: 2
A22: 0.16 | B22: -0.4 | C22: 17.4 | D22: 470 | E22: 19 | F22: 405.31875 | G22: 1 | H22: -0.4 | I22: 34.9 | J22: 895 | K22: 37.375 | L22: 1453.75625 | M22: 2
A23: 0.17 | B23: -0.4 | C23: 17.4 | D23: 470 | E23: 19.21875 | F23: 407.2328125 | G23: 1 | H23: -0.4 | I23: 34.9 | J23: 895 | K23: 37.375 | L23: 1453.75625 | M23: 2
A24: 0.18 | B24: -0.4 | C24: 17.4 | D24: 470 | E24: 19.4375 | F24: 409.146875 | G24: 1 | H24: -0.4 | I24: 34.9 | J24: 895 | K24: 37.375 | L24: 1453.75625 | M24: 2
A25: 0.19 | B25: -0.4 | C25: 17.4 | D25: 470 | E25: 19.65625 | F25: 411.0609375 | G25: 1 | H25: -0.4 | I25: 34.9 | J25: 895 | K25: 37.375 | L25: 1453.75625 | M25: 2
A26: 0.2 | B26: -0.4 | C26: 17.4 | D26: 470 | E26: 19.875 | F26: 412.975 | G26: 1 | H26: -0.4 | I26: 34.9 | J26: 895 | K26: 37.375 | L26: 1453.75625 | M26: 2
A27: 0.21 | B27: -0.4 | C27: 17.4 | D27: 470 | E27: 20.09375 | F27: 414.8890625 | G27: 1 | H27: -0.4 | I27: 34.9 | J27: 895 | K27: 37.375 | L27: 1453.75625 | M27: 2
A28: 0.22 | B28: -0.4 | C28: 17.4 | D28: 470 | E28: 20.3125 | F28: 416.803125 | G28: 1 | H28: -0.4 | I28: 34.9 | J28: 895 | K28: 37.375 | L28: 1453.75625 | M28: 2
A29: 0.23 | B29: -0.4 | C29: 17.4 | D29: 470 | E29: 20.53125 | F29: 418.7171875 | G29: 1 | H29: -0.4 | I29: 34.9 | J29: 895 | K29: 37.375 | L29: 1453.75625 | M29: 2
A30: 0.24 | B30: -0.4 | C30: 17.4 | D30: 470 | E30: 20.75 | F30: 420.63125 | G30: 1 | H30: -0.4 | I30: 34.9 | J30: 895 | K30: 37.375 | L30: 1453.75625 | M30: 2
A31: 0.25 | B31: -0.4 | C31: 17.4 | D31: 470 | E31: 20.96875 | F31: 422.5453125 | G31: 1 | H31: -0.4 | I31: 34.9 | J31: 895 | K31: 37.375 | L31: 1453.75625 | M31: 2
A32: 0.26 | B32: -0.4 | C32: 17.4 | D32: 470 | E32: 21.1875 | F32: 424.459375 | G32: 1 | H32: -0.4 | I32: 34.9 | J32: 895 | K32: 37.375 | L32: 1453.75625 | M32: 2
A33: 0.27 | B33: -0.4 | C33: 17.4 | D33: 470 | E33: 21.40625 | F33: 426.3734375 | G33: 1 | H33: -0.4 | I33: 34.9 | J33: 895 | K33: 37.375 | L33: 1453.75625 | M33: 2
A34: 0.28 | B34: -0.4 | C34: 17.4 | D34: 470 | E34: 21.625 | F34: 428.2875 | G34: 1 | H34: -0.4 | I34: 34.9 | J34: 895 | K34: 37.375 | L34: 1453.75625 | M34: 2
A35: 0.29 | B35: -0.4 | C35: 17.4 | D35: 470 | E35: 21.84375 | F35: 430.2015625 | G35: 1 | H35: -0.4 | I35: 34.9 | J35: 895 | K35: 37.375 | L35: 1453.75625 | M35: 2
A36: 0.3 | B36: -0.4 | C36: 17.4 | D36: 470 | E36: 22.0625 | F36: 432.115625 | G36: 1 | H36: -0.4 | I36: 34.9 | J36: 895 | K36: 37.375 | L36: 1453.75625 | M36: 2
A37: 0.31 | B37: -0.4 | C37: 17.4 | D37: 470 | E37: 22.28125 | F37: 434.0296875 | G37: 1 | H37: -0.4 | I37: 34.9 | J37: 895 | K37: 37.375 | L37: 1453.75625 | M37: 2
A38: 0.32 | B38: -0.4 | C38: 17.4 | D38: 470 | E38: 22.5 | F38: 435.94375 | G38: 1 | H38: -0.4 | I38: 34.9 | J38: 895 | K38: 37.375 | L38: 1453.75625 | M38: 2
A39: 0.33 | B39: -0.4 | C39: 17.4 | D39: 470 | E39: 22.71875 | F39: 437.8578125 | G39: 1 | H39: -0.4 | I39: 34.9 | J39: 895 | K39: 37.375 | L39: 1453.75625 | M39: 2
A40: 0.34 | B40: -0.4 | C40: 17.4 | D40: 470 | E40: 22.9375 | F40: 439.771875 | G40: 1 | H40: -0.4 | I40: 34.9 | J40: 895 | K40: 37.375 | L40: 1453.75625 | M40: 2
A41: 0.35 | B41: -0.4 | C41: 17.4 | D41: 470 | E41: 23.15625 | F41: 441.6859375 | G41: 1 | H41: -0.4 | I41: 34.9 | J41: 895 | K41: 37.375 | L41: 1453.75625 | M41: 2
A42: 0.36 | B42: -0.4 | C42: 17.4 | D42: 470 | E42: 23.375 | F42: 443.6 | G42: 1 | H42: -0.4 | I42: 34.9 | J42: 895 | K42: 37.375 | L42: 1453.75625 | M42: 2
A43: 0.37 | B43: -0.4 | C43: 17.4 | D43: 470 | E43: 23.59375 | F43: 445.5140625 | G43: 1 | H43: -0.4 | I43: 34.9 | J43: 895 | K43: 37.375 | L43: 1453.75625 | M43: 2
A44: 0.38 | B44: -0.4 | C44: 17.4 | D44: 470 | E44: 23.8125 | F44: 447.428125 | G44: 1 | H44: -0.4 | I44: 34.9 | J44: 895 | K44: 37.375 | L44: 1453.75625 | M44: 2
A45: 0.39 | B45: -0.4 | C45: 17.4 | D45: 470 | E45: 24.03125 | F45: 449.3421875 | G45: 1 | H45: -0.4 | I45: 34.9 | J45: 895 | K45: 37.375 | L45: 1453.75625 | M45: 2
A46: 0.4 | B46: -0.4 | C46: 17.4 | D46: 470 | E46: 24.25 | F46: 451.25625 | G46: 1 | H46: -0.4 | I46: 34.9 | J46: 895 | K46: 37.375 | L46: 1453.75625 | M46: 2
A47: 0.41 | B47: -0.4 | C47: 17.4 | D47: 470 | E47: 24.46875 | F47: 453.1703125 | G47: 1 | H47: -0.4 | I47: 34.9 | J47: 895 | K47: 37.375 | L47: 1453.75625 | M47: 2
A48: 0.42 | B48: -0.4 | C48: 17.4 | D48: 470 | E48: 24.6875 | F48: 455.084375 | G48: 1 | H48: -0.4 | I48: 34.9 | J48: 895 | K48: 37.375 | L48: 1453.75625 | M48: 2
A49: 0.43 | B49: -0.4 | C49: 17.4 | D49: 470 | E49: 24.90625 | F49: 456.9984375 | G49: 1 | H49: -0.4 | I49: 34.9 | J49: 895 | K49: 37.375 | L49: 1453.75625 | M49: 2
A50: 0.44 | B50: -0.4 | C50: 17.4 | D50: 470 | E50: 25.125 | F50: 458.9125 | G50: 1 | H50: -0.4 | I50: 34.9 | J50: 895 | K50: 37.375 | L50: 1453.75625 | M50: 2
A51: 0.45 | B51: -0.4 | C51: 17.4 | D51: 470 | E51: 25.34375 | F51: 460.8265625 | G51: 1 | H51: -0.4 | I51: 34.9 | J51: 895 | K51: 37.375 | L51: 1453.75625 | M51: 2
A52: 0.46 | B52: -0.4 | C52: 17.4 | D52: 470 | E52: 25.5625 | F52: 462.740625 | G52: 1 | H52: -0.4 | I52: 34.9 | J52: 895 | K52: 37.375 | L52: 1453.75625 | M52: 2
A53: 0.47 | B53: -0.4 | C53: 17.4 | D53: 470 | E53: 25.78125 | F53: 464.6546875 | G53: 1 | H53: -0.4 | I53: 34.9 | J53: 895 | K53: 37.375 | L53: 1453.75625 | M53: 2
A54: 0.48 | B54: -0.4 | C54: 17.4 | D54: 470 | E54: 26 | F54: 466.56875 | G54: 1 | H54: -0.4 | I54: 34.9 | J54: 895 | K54: 37.375 | L54: 1453.75625 | M54: 2
A55: 0.49 | B55: -0.4 | C55: 17.4 | D55: 470 | E55: 26.21875 | F55: 468.4828125 | G55: 1 | H55: -0.4 | I55: 34.9 | J55: 895 | K55: 37.375 | L55: 1453.75625 | M55: 2
A56: 0.5 | B56: -0.4 | C56: 17.4 | D56: 470 | E56: 26.4375 | F56: 470.396875 | G56: 1 | H56: -0.4 | I56: 34.9 | J56: 895 | K56: 37.375 | L56: 1453.75625 | M56: 2
A57: 0.51 | B57: -0.4 | C57: 17.4 | D57: 470 | E57: 26.65625 | F57: 472.3109375 | G57: 1 | H57: -0.4 | I57: 34.9 | J57: 895 | K57: 37.375 | L57: 1453.75625 | M57: 2
A58: 0.52 | B58: -0.4 | C58: 17.4 | D58: 470 | E58: 26.875 | F58: 474.225 | G58: 1 | H58: -0.4 | I58: 34.9 | J58: 895 | K58: 37.375 | L58: 1453.75625 | M58: 2
A59: 0.53 | B59: -0.4 | C59: 17.4 | D59: 470 | E59: 27.09375 | F59: 476.1390625 | G59: 1 | H59: -0.4 | I59: 34.9 | J59: 895 | K59: 37.375 | L59: 1453.75625 | M59: 2
A60: 0.54 | B60: -0.4 | C60: 17.4 | D60: 470 | E60: 27.3125 | F60: 478.053125 | G60: 1 | H60: -0.4 | I60: 34.9 | J60: 895 | K60: 37.375 | L60: 1453.75625 | M60: 2
A61: 0.55 | B61: -0.4 | C61: 17.4 | D61: 470 | E61: 27.53125 | F61: 479.9671875 | G61: 1 | H61: -0.4 | I61: 34.9 | J61: 895 | K61: 37.375 | L61: 1453.75625 | M61: 2
A62: 0.56 | B62: -0.4 | C62: 17.4 | D62: 470 | E62: 27.75 | F62: 481.88125 | G62: 1 | H62: -0.4 | I62: 34.9 | J62: 895 | K62: 37.375 | L62: 1453.75625 | M62: 2
A63: 0.57 | B63: -0.4 | C63: 17.4 | D63: 470 | E63: 27.96875 | F63: 483.7953125 | G63: 1 | H63: -0.4 | I63: 34.9 | J63: 895 | K63: 37.375 | L63: 1453.75625 | M63: 2
A64: 0.58 | B64: -0.4 | C64: 17.4 | D64: 470 | E64: 28.1875 | F64: 485.709375 | G64: 1 | H64: -0.4 | I64: 34.9 | J64: 895 | K64: 37.375 | L64: 1453.75625 | M64: 2
A65: 0.59 | B65: -0.4 | C65: 17.4 | D65: 470 | E65: 28.40625 | F65: 487.6234375 | G65: 1 | H65: -0.4 | I65: 34.9 | J65: 895 | K65: 37.375 | L65: 1453.75625 | M65: 2
A66: 0.6 | B66: -0.4 | C66: 17.4 | D66: 470 | E66: 28.625 | F66: 489.5375 | G66: 1 | H66: -0.4 | I66: 34.9 | J66: 895 | K66: 37.375 | L66: 1453.75625 | M66: 2
A67: 0.61 | B67: -0.4 | C67: 17.4 | D67: 470 | E67: 28.84375 | F67: 491.4515625 | G67: 1 | H67: -0.4 | I67: 34.9 | J67: 895 | K67: 37.375 | L67: 1453.75625 | M67: 2
A68: 0.62 | B68: -0.4 | C68: 17.4 | D68: 470 | E68: 29.0625 | F68: 493.365625 | G68: 1 | H68: -0.4 | I68: 34.9 | J68: 895 | K68: 37.375 | L68: 1453.75625 | M68: 2
A69: 0.63 | B69: -0.4 | C69: 17.4 | D69: 470 | E69: 29.28125 | F69: 495.2796875 | G69: 1 | H69: -0.4 | I69: 34.9 | J69: 895 | K69: 37.375 | L69: 1453.75625 | M69: 2
A70: 0.64 | B70: -0.4 | C70: 17.4 | D70: 470 | E70: 29.5 | F70: 497.19375 | G70: 1 | H70: -0.4 | I70: 34.9 | J70: 895 | K70: 37.375 | L70: 1453.75625 | M70: 2
A71: 0.65 | B71: -0.4 | C71: 17.4 | D71: 470 | E71: 29.71875 | F71: 499.1078125 | G71: 1 | H71: -0.4 | I71: 34.9 | J71: 895 | K71: 37.375 | L71: 1453.75625 | M71: 2
A72: 0.66 | B72: -0.4 | C72: 17.4 | D72: 470 | E72: 29.9375 | F72: 501.021875 | G72: 1 | H72: -0.4 | I72: 34.9 | J72: 895 | K72: 37.375 | L72: 1453.75625 | M72: 2
A73: 0.67 | B73: -0.4 | C73: 17.4 | D73: 470 | E73: 30.15625 | F73: 502.9359375 | G73: 1 | H73: -0.4 | I73: 34.9 | J73: 895 | K73: 37.375 | L73: 1453.75625 | M73: 2
A74: 0.68 | B74: -0.4 | C74: 17.4 | D74: 470 | E74: 30.375 | F74: 504.85 | G74: 1 | H74: -0.4 | I74: 34.9 | J74: 895 | K74: 37.375 | L74: 1453.75625 | M74: 2
A75: 0.69 | B75: -0.4 | C75: 17.4 | D75: 470 | E75: 30.59375 | F75: 506.7640625 | G75: 1 | H75: -0.4 | I75: 34.9 | J75: 895 | K75: 37.375 | L75: 1453.75625 | M75: 2
A76: 0.7 | B76: -0.4 | C76: 17.4 | D76: 470 | E76: 30.8125 | F76: 508.678125 | G76: 1 | H76: -0.4 | I76: 34.9 | J76: 895 | K76: 37.375 | L76: 1453.75625 | M76: 2
A77: 0.71 | B77: -0.4 | C77: 17.4 | D77: 470 | E77: 31.03125 | F77: 510.5921875 | G77: 1 | H77: -0.4 | I77: 34.9 | J77: 895 | K77: 37.375 | L77: 1453.75625 | M77: 2
A78: 0.72 | B78: -0.4 | C78: 17.4 | D78: 470 | E78: 31.25 | F78: 512.50625 | G78: 1 | H78: -0.4 | I78: 34.9 | J78: 895 | K78: 37.375 | L78: 1453.75625 | M78: 2
A79: 0.73 | B79: -0.4 | C79: 17.4 | D79: 470 | E79: 31.46875 | F79: 514.4203125 | G79: 1 | H79: -0.4 | I79: 34.9 | J79: 895 | K79: 37.375 | L79: 1453.75625 | M79: 2
A80: 0.74 | B80: -0.4 | C80: 17.4 | D80: 470 | E80: 31.6875 | F80: 516.334375 | G80: 1 | H80: -0.4 | I80: 34.9 | J80: 895 | K80: 37.375 | L80: 1453.75625 | M80: 2
A81: 0.75 | B81: -0.4 | C81: 17.4 | D81: 470 | E81: 31.90625 | F81: 518.2484375 | G81: 1 | H81: -0.4 | I81: 34.9 | J81: 895 | K81: 37.375 | L81: 1453.75625 | M81: 2
A82: 0.76 | B82: -0.4 | C82: 17.4 | D82: 470 | E82: 32.125 | F82: 520.1625 | G82: 1 | H82: -0.4 | I82: 34.9 | J82: 895 | K82: 37.375 | L82: 1453.75625 | M82: 2
A83: 0.77 | B83: -0.4 | C83: 17.4 | D83: 470 | E83: 32.34375 | F83: 522.0765625 | G83: 1 | H83: -0.4 | I83: 34.9 | J83: 895 | K83: 37.375 | L83: 1453.75625 | M83: 2
A84: 0.78 | B84: -0.4 | C84: 17.4 | D84: 470 | E84: 32.5625 | F84: 523.990625 | G84: 1 | H84: -0.4 | I84: 34.9 | J84: 895 | K84: 37.375 | L84: 1453.75625 | M84: 2
A85: 0.79 | B85: -0.4 | C85: 17.4 | D85: 470 | E85: 32.78125 | F85: 525.9046875 | G85: 1 | H85: -0.4 | I85: 34.9 | J85: 895 | K85: 37.375 | L85: 1453.75625 | M85: 2
A86: 0.8 | B86: -0.4 | C86: 17.4 | D86: 470 | E86: 33 | F86: 527.81875 | G86: 1 | H86: -0.4 | I86: 34.9 | J86: 895 | K86: 37.375 | L86: 1453.75625 | M86: 2
A87: 0.81 | B87: -0.4 | C87: 17.4 | D87: 470 | E87: 33.21875 | F87: 529.7328125 | G87: 1 | H87: -0.4 | I87: 34.9 | J87: 895 | K87: 37.375 | L87: 1453.75625 | M87: 2
A88: 0.82 | B88: -0.4 | C88: 17.4 | D88: 470 | E88: 33.4375 | F88: 531.646875 | G88: 1 | H88: -0.4 | I88: 34.9 | J88: 895 | K88: 37.375 | L88: 1453.75625 | M88: 2
A89: 0.83 | B89: -0.4 | C89: 17.4 | D89: 470 | E89: 33.65625 | F89: 533.5609375 | G89: 1 | H89: -0.4 | I89: 34.9 | J89: 895 | K89: 37.375 | L89: 1453.75625 | M89: 2
A90: 0.84 | B90: -0.4 | C90: 17.4 | D90: 470 | E90: 33.875 | F90: 535.475 | G90: 1 | H90: -0.4 | I90: 34.9 | J90: 895 | K90: 37.375 | L90: 1453.75625 | M90: 2
A91: 0.85 | B91: -0.4 | C91: 17.4 | D91: 470 | E91: 34.09375 | F91: 537.3890625 | G91: 1 | H91: -0.4 | I91: 34.9 | J91: 895 | K91: 37.375 | L91: 1453.75625 | M91: 2
A92: 0.86 | B92: -0.4 | C92: 17.4 | D92: 470 | E92: 34.3125 | F92: 539.303125 | G92: 1 | H92: -0.4 | I92: 34.9 | J92: 895 | K92: 37.375 | L92: 1453.75625 | M92: 2
A93: 0.87 | B93: -0.4 | C93: 17.4 | D93: 470 | E93: 34.53125 | F93: 541.2171875 | G93: 1 | H93: -0.4 | I93: 34.9 | J93: 895 | K93: 37.375 | L93: 1453.75625 | M93: 2
A94: 0.88 | B94: -0.4 | C94: 17.4 | D94: 470 | E94: 34.75 | F94: 543.13125 | G94: 1 | H94: -0.4 | I94: 34.9 | J94: 895 | K94: 37.375 | L94: 1453.75625 | M94: 2
A95: 0.89 | B95: -0.4 | C95: 17.4 | D95: 470 | E95: 34.96875 | F95: 545.0453125 | G95: 1 | H95: -0.4 | I95: 34.9 | J95: 895 | K95: 37.375 | L95: 1453.75625 | M95: 2
A96: 0.9 | B96: -0.4 | C96: 17.4 | D96: 470 | E96: 35.1875 | F96: 546.959375 | G96: 1 | H96: -0.4 | I96: 34.9 | J96: 895 | K96: 37.375 | L96: 1453.75625 | M96: 2
A97: 0.91 | B97: -0.4 | C97: 17.4 | D97: 470 | E97: 35.40625 | F97: 548.8734375 | G97: 1 | H97: -0.4 | I97: 34.9 | J97: 895 | K97: 37.375 | L97: 1453.75625 | M97: 2
A98: 0.92 | B98: -0.4 | C98: 17.4 | D98: 470 | E98: 35.625 | F98: 550.7875 | G98: 1 | H98: -0.4 | I98: 34.9 | J98: 895 | K98: 37.375 | L98: 1453.75625 | M98: 2
A99: 0.93 | B99: -0.4 | C99: 17.4 | D99: 470 | E99: 35.84375 | F99: 552.7015625 | G99: 1 | H99: -0.4 | I99: 34.9 | J99: 895 | K99: 37.375 | L99: 1453.75625 | M99: 2
A100: 0.94 | B100: -0.4 | C100: 17.4 | D100: 470 | E100: 36.0625 | F100: 554.615625 | G100: 1 | H100: -0.4 | I100: 34.9 | J100: 895 | K100: 37.375 | L100: 1453.75625 | M100: 2
A101: 0.95 | B101: -0.4 | C101: 17.4 | D101: 470 | E101: 36.28125 | F101: 556.5296875 | G101: 1 | H101: -0.4 | I101: 34.9 | J101: 895 | K101: 37.375 | L101: 1453.75625 | M101: 2
A102: 0.96 | B102: -0.4 | C102: 17.4 | D102: 470 | E102: 36.5 | F102: 558.44375 | G102: 1 | H102: -0.4 | I102: 34.9 | J102: 895 | K102: 37.375 | L102: 1453.75625 | M102: 2
A103: 0.97 | B103: -0.4 | C103: 17.4 | D103: 470 | E103: 36.71875 | F103: 560.3578125 | G103: 1 | H103: -0.4 | I103: 34.9 | J103: 895 | K103: 37.375 | L103: 1453.75625 | M103: 2
A104: 0.98 | B104: -0.4 | C104: 17.4 | D104: 470 | E104: 36.9375 | F104: 562.271875 | G104: 1 | H104: -0.4 | I104: 34.9 | J104: 895 | K104: 37.375 | L104: 1453.75625 | M104: 2
A105: 0.99 | B105: -0.4 | C105: 17.4 | D105: 470 | E105: 37.15625 | F105: 564.1859375 | G105: 1 | H105: -0.4 | I105: 34.9 | J105: 895 | K105: 37.375 | L105: 1453.75625 | M105: 2
A106: 1 | B106: -0.4 | C106: 17.4 | D106: 470 | E106: 37.375 | F106: 566.1 | G106: 1 | H106: -0.4 | I106: 34.9 | J106: 895 | K106: 37.375 | L106: 1453.75625 | M106: 2

Sheet Iterations Output 11
A1: Scenario | B1: Iteration | C1: Coeff a | D1: Coeff b | E1: Coeff c | F1: N | G1: Profit | H1: State
A2: 1 | B2: 1 | C2: -0.4 | D2: 17.4 | E2: 470 | F2: 15.5 | G2: 566.1 | H2: 1
A3: 1 | B3: 2 | C3: -0.4 | D3: 17.4 | E3: 470 | F3: 37.375 | G3: 374.69375 | H3: 1
A4: 2 | B4: 1 | C4: -0.4 | D4: 34.9 | E4: 895 | F4: 37.375 | G4: 1453.75625 | H4: 2
A5: 2 | B5: 2 | C5: -0.4 | D5: 34.9 | E5: 895 | F5: 37.375 | G5: 1453.75625 | H5: 2
